bitfinex/quotes_SOLUSD_20251115
["timestamp","ask_amount","ask_price","bid_price","bid_amount"]
[1763218565102,0.67,141.51,141.49,1.8713817]
[1763218565429,9.78882769,141.52,141.5,1.8713817]
[1763218565632,0.67,141.53,141.51,1.8713817]
[1763218566042,0.67,141.52,141.5,1.8713817]
[1763218566326,0.67,141.52,141.49,1.8713817]
[1763218566524,9.78882769,141.51,141.48,1.8713817]
[1763218567010,0.67,141.5,141.48,1.8713817]
[1763218568145,17.67208409,141.56,141.49,2.5213817]
[1763218568146,10.45882769,141.54,141.49,2.5213817]
[1763218568447,10.45882769,141.53,141.5,1.8713817]
[1763218568610,10.45882769,141.53,141.49,70.338921]
[1763218568911,0.67,141.52,141.49,70.338921]
[1763218569529,10.45882769,141.53,141.5,1.8713817]
[1763218570530,10.45882769,141.53,141.5,8.93833288]
[1763218571411,1.8713817,141.57,141.52,1.8713817]
[1763218571734,10.48882769,141.56,141.53,1.8713817]
[1763218572114,0.7,141.55,141.52,1.8713817]
[1763218573140,0.7,141.55,141.52,8.93747338]
[1763218574210,0.7,141.55,141.52,9.63747338]
[1763218574612,0.7,141.55,141.52,1.8713817]
[1763218575013,0.7,141.55,141.52,8.937475]
[1763218575213,0.7,141.55,141.52,7.0660933]
[1763218575413,0.7,141.55,141.52,8.937475]
[1763218575916,0.7,141.55,141.52,9.637475]
[1763218576436,0.7,141.55,141.52,8.937475]
[1763218576625,0.7,141.55,141.52,1.8713817]
[1763218577546,0.7,141.55,141.52,70.33742667]
[1763218577834,21.4396899,141.59,141.53,1.8713817]
[1763218578039,23.3712,141.56,141.53,1.8713817]
[1763218578440,0.72,141.55,141.53,1.8713817]
[1763218579641,0.72,141.55,141.53,8.93692406]
[1763218579839,9.78882769,141.57,141.53,8.93692406]
[1763218580048,0.72,141.56,141.53,8.93692406]
[1763218580235,0.72,141.56,141.53,1.8713817]
[1763218580750,11.66020939,141.54,141.48,0.7]
[1763218580920,22.6512,141.55,141.51,1.8713817]
[1763218581118,0.72,141.54,141.51,1.8713817]
[1763218582218,0.72,141.54,141.52,1.8713817]
[1763218582643,0.72,141.54,141.51,1.8713817]
[1763218584343,0.72,141.54,141.51,8.93780155]
[1763218584545,0.72,141.56,141.53,1.8713817]
[1763218584728,9.78882769,141.57,141.53,1.8713817]
[1763218584729,0.72,141.55,141.53,1.8713817]
[1763218585467,0.72,141.55,141.51,8.93780155]
[1763218586352,0.72,141.55,141.51,70.33780155]
[1763218586955,0.72,141.55,141.52,1.8713817]
[1763218587447,0.72,141.55,141.51,69.16641985]
[1763218587650,0.72,141.55,141.52,1.8713817]
[1763218587944,0.72,141.55,141.51,69.16641985]
[1763218587945,0.72,141.55,141.51,63.2713817]
[1763218588152,2.5913817,141.55,141.51,61.4]
[1763218588447,0.72,141.55,141.51,63.2713817]
[1763218588639,0.72,141.54,141.51,63.2713817]
[1763218590249,55.55410721,141.57,141.53,1.8713817]
[1763218590430,0.92,141.59,141.56,1.8713817]
[1763218590754,23.5712,141.59,141.56,1.8713817]
[1763218590940,0.72,141.58,141.55,1.8713817]
[1763218591132,0.72,141.58,141.54,1.8713817]
[1763218591821,23.5712,141.59,141.57,1.8713817]
[1763218592025,0.2,141.59,141.57,1.8713817]
[1763218592244,0.2,141.59,141.57,9.63495592]
[1763218592440,0.2,141.59,141.58,2.5713817]
[1763218592638,0.2,141.59,141.58,1.8713817]
[1763218593149,0.2,141.59,141.57,9.63495592]
[1763218593347,0.2,141.59,141.57,8.93495592]
[1763218593556,0.2,141.59,141.58,1.8713817]
[1763218593729,0.2,141.59,141.57,9.63495592]
[1763218593930,0.92,141.59,141.57,8.93495592]
[1763218597753,0.2,141.59,141.57,8.93495592]
[1763218597936,0.2,141.59,141.58,2.5713817]
[1763218598139,0.2,141.59,141.58,1.8713817]
[1763218598344,0.2,141.59,141.57,70.33495592]
[1763218598761,0.92,141.59,141.57,70.33495592]
[1763218599138,0.2,141.59,141.58,1.8713817]
[1763218599844,0.2,141.59,141.58,8.93452621]
[1763218602364,0.2,141.59,141.58,7.06314451]
[1763218602860,0.2,141.59,141.58,9.98670399]
[1763218603828,0.2,141.59,141.58,71.38670399]
[1763218604541,0.2,141.59,141.58,61.4]
[1763218604855,0.91,141.59,141.58,61.4]
[1763218609662,0.91,141.59,141.57,2.92355948]
[1763218609865,0.91,141.59,141.57,9.98718804]
[1763218612758,0.2,141.59,141.58,3.59355948]
[1763218614744,0.2,141.59,141.58,10.65670399]
[1763218616062,0.2,141.59,141.58,72.05670399]
[1763218616566,0.2,141.59,141.58,74.98026347]
[1763218617150,0.2,141.62,141.59,61.39999999]
[1763218617344,0.2,141.62,141.61,2.92355948]
[1763218617853,0.2,141.62,141.61,3.59355948]
[1763218618869,0.2,141.62,141.61,10.65520766]
[1763218619859,0.2,141.62,141.61,7.73164818]
[1763218620155,0.2,141.62,141.61,10.65520766]
[1763218623773,0.2,141.62,141.61,31.94224458]
[1763218623974,0.2,141.62,141.61,10.65520766]
[1763218625452,0.91,141.62,141.6,61.39999999]
[1763218625658,0.91,141.62,141.59,71.3860009]
[1763218626054,0.71,141.61,141.59,2.92355948]
[1763218627167,0.71,141.61,141.59,9.98607764]
[1763218627658,0.71,141.61,141.59,2.92355948]
[1763218627861,0.71,141.61,141.58,2.92355948]
[1763218628165,0.71,141.61,141.58,9.98656466]
[1763218630459,0.2,141.62,141.6,2.92355948]
[1763218630686,0.91,141.62,141.6,2.92355948]
[1763218631568,0.91,141.62,141.6,9.98561804]
[1763218632688,0.2,141.62,141.6,2.92355948]
[1763218632861,0.66,141.61,141.6,2.92355948]
[1763218633062,0.66,141.61,141.6,64.32355947]
[1763218633270,0.2,141.62,141.6,71.38555506]
[1763218633477,0.92,141.62,141.6,71.38555506]
[1763218637096,0.2,141.62,141.6,71.38555506]
[1763218637466,0.92,141.62,141.6,71.38555506]
[1763218637664,0.2,141.62,141.6,72.09555506]
[1763218638690,0.92,141.62,141.6,64.32355947]
[1763218639388,0.92,141.62,141.6,71.385629]
[1763218641873,0.2,141.62,141.61,2.92355948]
[1763218642205,0.2,141.62,141.61,65.03355947]
[1763218643904,0.2,141.62,141.61,72.09520765]
[1763218644266,0.2,141.63,141.62,61.19999999]
[1763218644487,0.2,141.63,141.62,64.83355947]
[1763218646102,0.2,141.63,141.62,71.89470902]
[1763218648097,0.2,141.63,141.62,71.18470902]
[1763218648682,0.92,141.63,141.62,71.18470902]
[1763218649004,0.2,141.63,141.62,71.18470902]
[1763218649678,0.92,141.63,141.61,2.92355948]
[1763218650106,0.2,141.63,141.61,9.98513587]
[1763218650306,0.92,141.63,141.61,9.98513587]
[1763218651501,0.72,141.62,141.61,2.92355948]
[1763218651690,0.72,141.62,141.6,64.12355947]
[1763218652006,0.72,141.62,141.61,2.92355948]
[1763218652692,0.2,141.63,141.61,2.92355948]
[1763218652892,0.92,141.63,141.57,0.71]
[1763218653098,3.84355948,141.63,141.58,2.92355948]
[1763218653296,0.72,141.62,141.58,2.92355948]
[1763218653486,0.72,141.62,141.58,9.98669691]
[1763218654409,0.72,141.62,141.59,2.92355948]
[1763218655295,0.72,141.62,141.59,9.98612143]
[1763218656898,0.72,141.62,141.58,9.98650391]
[1763218659212,0.72,141.62,141.59,2.92355948]
[1763218659912,0.72,141.62,141.58,7.06294443]
[1763218659913,0.72,141.62,141.6,2.92355948]
[1763218660119,0.72,141.62,141.6,64.12355947]
[1763218661109,0.72,141.62,141.6,71.18555199]
[1763218662411,0.72,141.62,141.6,61.19999999]
[1763218663606,0.72,141.62,141.6,68.26213232]
[1763218663805,0.72,141.62,141.6,70.13275935]
[1763218664008,0.72,141.62,141.6,63.07062702]
[1763218664911,0.72,141.62,141.6,70.1327494]
[1763218665922,0.72,141.62,141.6,68.1327494]
[1763218667121,0.2,141.63,141.61,2.54062703]
[1763218667296,0.2,141.63,141.61,9.60227167]
[1763218668118,0.2,141.63,141.62,1.87062703]
[1763218669520,0.2,141.63,141.62,8.93177658]
[1763218671225,0.2,141.63,141.62,68.13177657]
[1763218671419,0.2,141.63,141.62,68.80177657]
[1763218672224,0.2,141.63,141.62,68.13177657]
[1763218672918,0.2,141.63,141.62,68.80177657]
[1763218674029,0.2,141.63,141.62,66.93114954]
[1763218674338,0.2,141.63,141.62,68.80177657]
[1763218680529,0.2,141.65,141.63,58.99999999]
[1763218680723,0.2,141.65,141.64,8.93077952]
[1763218680925,0.2,141.65,141.64,9.60077952]
[1763218682533,0.2,141.65,141.64,68.60077951]
[1763218683729,0.2,141.67,141.66,22.6512]
[1763218683912,0.2,141.67,141.66,32.00433515]
[1763218684111,0.2,141.67,141.66,32.67433515]
[1763218685541,0.2,141.67,141.66,39.73349087]
[1763218688727,0.2,141.69,141.67,58.79999999]
[1763218688929,0.89,141.69,141.68,1.87062703]
[1763218689427,0.89,141.69,141.68,8.92878626]
[1763218690925,0.2,141.69,141.68,8.92878626]
[1763218692845,0.91,141.69,141.67,58.79999999]
[1763218693151,0.2,141.69,141.68,8.92878626]
[1763218694838,0.2,141.69,141.68,67.72878625]
[1763218698836,0.87,141.69,141.68,67.72878625]
[1763218699657,0.2,141.69,141.68,67.72878625]
[1763218702453,0.87,141.69,141.68,67.72878625]
[1763218703130,0.2,141.69,141.68,67.72878625]
[1763218706933,0.2,141.69,141.68,68.42878625]
[1763218707233,0.2,141.69,141.68,67.72878625]
[1763218707545,0.2,141.69,141.68,68.42878625]
[1763218709451,0.2,141.69,141.68,67.72878625]
[1763218711431,0.87,141.69,141.68,58.79999999]
[1763218714854,0.87,141.69,141.64,58.79999999]
[1763218714855,12.52945472,141.69,141.64,58.79999999]
[1763218715055,0.67,141.68,141.64,60.67062702]
[1763218715365,2.54062703,141.68,141.64,60.67062702]
[1763218715741,0.67,141.67,141.64,60.67062702]
[1763218715960,2.54062703,141.67,141.64,58.79999999]
[1763218716276,24.52182703,141.66,141.61,8.93208651]
[1763218716474,25.19182703,141.66,141.61,8.93208651]
[1763218716772,0.67,141.65,141.61,8.93208651]
[1763218716941,2.54062703,141.65,141.6,1.87062703]
[1763218717346,0.67,141.64,141.6,1.87062703]
[1763218717647,0.67,141.64,141.61,1.87062703]
[1763218719172,1.87062703,141.67,141.63,1.87062703]
[1763218719376,0.67,141.65,141.63,1.87062703]
[1763218720563,0.67,141.65,141.63,8.93117993]
[1763218720768,0.67,141.66,141.64,1.87062703]
[1763218723266,0.67,141.66,141.64,8.93068896]
[1763218723847,32.44002769,141.68,141.64,8.93068896]
[1763218724049,0.69,141.67,141.65,1.87062703]
[1763218724249,0.69,141.67,141.65,60.67062702]
[1763218724850,0.69,141.67,141.65,68.77987868]
[1763218726477,0.69,141.67,141.65,58.79999999]
[1763218727574,0.69,141.67,141.65,68.78007619]
[1763218728077,0.69,141.67,141.65,61.72050288]
[1763218728257,0.69,141.67,141.65,58.79999999]
[1763218729947,3.12050289,141.69,141.65,58.79999999]
[1763218730159,0.2,141.69,141.68,2.92050289]
[1763218730466,0.2,141.69,141.67,2.92050289]
[1763218730773,0.2,141.69,141.67,3.60050289]
[1763218731362,0.2,141.69,141.68,7.05815923]
[1763218731680,0.2,141.69,141.68,9.97866212]
[1763218734662,0.89,141.69,141.68,2.92050289]
[1763218734982,0.89,141.69,141.67,9.97896615]
[1763218735180,0.2,141.69,141.67,9.97896615]
[1763218735484,0.2,141.69,141.67,10.65896615]
[1763218735691,0.89,141.69,141.67,68.77896614]
[1763218738689,0.69,141.68,141.66,65.85898219]
[1763218739064,0.69,141.68,141.66,58.79999999]
[1763218739260,0.69,141.68,141.65,65.85944564]
[1763218739582,0.69,141.68,141.65,66.53944564]
[1763218740971,2.92050289,141.67,141.63,7.06042647]
[1763218741397,0.69,141.66,141.63,7.74042647]
[1763218742172,0.69,141.66,141.63,7.06042647]
[1763218742487,2.92050289,141.64,141.59,61.72050288]
[1763218742791,2.92050289,141.63,141.59,7.06246383]
[1763218743165,0.69,141.62,141.59,7.06246383]
[1763218746074,3.61050289,141.62,141.59,7.06246383]
[1763218746489,3.61050289,141.61,141.56,10.6646453]
[1763218746693,0.69,141.6,141.57,0.68]
[1763218747088,0.69,141.6,141.56,86.44500132]
[1763218747266,0.69,141.6,141.56,87.12500132]
[1763218747894,0.69,141.6,141.56,69.46464529]
[1763218751096,0.69,141.6,141.57,3.59050289]
[1763218752392,0.69,141.6,141.58,7.06314451]
[1763218753290,0.66,141.64,141.59,3.63050289]
[1763218753494,0.66,141.64,141.62,2.92050289]
[1763218753814,0.66,141.64,141.62,61.72050288]
[1763218754384,0.66,141.65,141.62,68.7814878]
[1763218755899,0.66,141.65,141.62,61.72050288]
[1763218756096,0.66,141.65,141.62,58.79999999]
[1763218757419,0.66,141.65,141.62,65.86109304]
[1763218757621,0.66,141.65,141.62,69.49159593]
[1763218758911,33.10002769,141.67,141.63,3.63050289]
[1763218759206,0.66,141.67,141.64,2.92050289]
[1763218759607,0.66,141.67,141.64,7.05969605]
[1763218761289,3.58050289,141.67,141.63,58.79999999]
[1763218761800,0.66,141.66,141.63,65.86056872]
[1763218762785,0.66,141.66,141.63,68.78107161]
[1763218762987,0.66,141.66,141.63,69.49107161]
[1763218764110,0.66,141.66,141.63,68.78107161]
[1763218765510,0.66,141.66,141.63,69.49107161]
[1763218765804,3.58050289,141.68,141.64,0.71]
[1763218766009,0.66,141.67,141.64,0.71]
[1763218766204,0.66,141.67,141.64,58.79999999]
[1763218768199,0.66,141.67,141.65,7.05965407]
[1763218770916,0.66,141.67,141.65,65.85965406]
[1763218771897,3.58050289,141.67,141.65,58.79999999]
[1763218772090,2.92050289,141.66,141.65,58.79999999]
[1763218772410,3.58050289,141.66,141.65,58.79999999]
[1763218772724,0.66,141.66,141.65,58.79999999]
[1763218776718,0.66,141.66,141.63,66.57063592]
[1763218778622,0.66,141.66,141.63,69.49113881]
[1763218784221,0.66,141.66,141.63,66.57063592]
[1763218788619,0.89,141.69,141.64,0.69]
[1763218788928,0.2,141.69,141.66,1.86957914]
[1763218789123,0.89,141.69,141.66,61.35957913]
[1763218790212,0.89,141.69,141.67,7.05865744]
[1763218790614,0.89,141.69,141.66,68.41861176]
[1763218792828,0.2,141.69,141.67,0.69]
[1763218794431,0.2,141.69,141.67,59.48999999]
[1763218794731,0.2,141.69,141.67,66.54824712]
[1763218797835,0.2,141.69,141.67,58.79999999]
[1763218798030,0.89,141.69,141.67,58.79999999]
[1763218801029,0.89,141.69,141.67,65.8584789]
[1763218801234,0.2,141.69,141.67,66.5484789]
[1763218801652,0.2,141.69,141.67,66.5484933]
[1763218801938,0.2,141.69,141.68,0.69]
[1763218802144,0.2,141.69,141.68,7.74815923]
[1763218802723,0.2,141.69,141.68,7.05815923]
[1763218803739,0.2,141.69,141.67,65.858415]
[1763218803934,0.2,141.69,141.67,66.548415]
[1763218804739,0.2,141.69,141.68,2.55957914]
[1763218805530,0.2,141.69,141.68,9.61773837]
[1763218806338,0.89,141.69,141.68,7.05815923]
[1763218807041,0.89,141.69,141.67,58.79999999]
[1763218807229,0.69,141.68,141.67,58.79999999]
[1763218807537,2.55957914,141.68,141.65,7.05944735]
[1763218807770,1.86957914,141.67,141.65,7.05944735]
[1763218807917,0.69,141.67,141.65,7.05944735]
[1763218808724,0.2,141.69,141.66,2.55957914]
[1763218808926,0.2,141.69,141.68,1.86957914]
[1763218809451,0.2,141.69,141.68,2.55957914]
[1763218809652,0.2,141.69,141.68,7.74815923]
[1763218809853,0.2,141.69,141.68,7.05815923]
[1763218810044,0.2,141.69,141.68,7.74815923]
[1763218810737,0.2,141.69,141.68,9.61773837]
[1763218811934,0.2,141.69,141.68,68.41773836]
[1763218812773,0.2,141.69,141.68,65.85815922]
[1763218812955,0.89,141.69,141.68,65.85815922]
[1763218813329,0.2,141.69,141.68,65.85815922]
[1763218813541,0.88,141.69,141.68,65.85815922]
[1763218814536,0.2,141.69,141.68,65.85815922]
[1763218815364,0.2,141.69,141.68,58.79999999]
[1763218815365,0.88,141.69,141.68,58.79999999]
[1763218820279,0.2,141.69,141.68,65.85815922]
[1763218820467,0.88,141.69,141.68,58.79999999]
[1763218822670,2.74957914,141.69,141.68,58.79999999]
[1763218822871,25.40077914,141.69,141.68,58.79999999]
[1763218823364,35.18960683,141.69,141.68,58.79999999]
[1763218823571,35.18960683,141.69,141.65,58.79999999]
[1763218823756,0.68,141.68,141.65,58.79999999]
[1763218823956,2.54957914,141.68,141.65,58.79999999]
[1763218824340,0.68,141.67,141.65,58.79999999]
[1763218829773,2.54957914,141.67,141.65,58.79999999]
[1763218830177,1.86957914,141.67,141.65,58.79999999]
[1763218830369,0.68,141.66,141.65,58.79999999]
[1763218830679,2.54957914,141.67,141.65,58.79999999]
[1763218830977,1.86957914,141.67,141.65,58.79999999]
[1763218831178,0.68,141.66,141.65,58.79999999]
[1763218831547,1.86957914,141.67,141.65,58.79999999]
[1763218831753,2.54957914,141.67,141.65,58.79999999]
[1763218832262,0.68,141.67,141.65,58.79999999]
[1763218833178,0.2,141.69,141.66,2.52957914]
[1763218833681,0.2,141.69,141.67,0.66]
[1763218834180,0.2,141.69,141.67,7.71839964]
[1763218836684,0.88,141.69,141.67,7.05839964]
[1763218838285,0.88,141.69,141.67,65.85839963]
[1763218839181,0.88,141.69,141.67,58.79999999]
[1763218840395,0.88,141.69,141.67,65.85865424]
[1763218840887,0.2,141.69,141.67,65.85865424]
[1763218841181,0.88,141.69,141.67,65.85865424]
[1763218849004,3.61005346,141.68,141.67,58.79999999]
[1763218849164,3.61005346,141.68,141.62,0.65]
[1763218849363,2.92005346,141.66,141.62,66.51104258]
[1763218849563,2.92005346,141.66,141.63,0.65]
[1763218849758,2.92005346,141.66,141.62,65.86104258]
[1763218849983,0.69,141.65,141.62,66.51104258]
[1763218851487,2.92005346,141.66,141.63,0.65]
[1763218851680,3.61005346,141.66,141.63,0.65]
[1763218853789,0.69,141.65,141.62,68.78109604]
[1763218854092,3.61005346,141.66,141.63,0.65]
[1763218854990,0.69,141.65,141.62,66.51104258]
[1763218855292,3.61005346,141.66,141.63,0.65]
[1763218855490,3.61005346,141.66,141.62,68.78109604]
[1763218855693,3.61005346,141.66,141.63,0.65]
[1763218855991,3.61005346,141.66,141.63,59.44999999]
[1763218856390,2.92005346,141.66,141.63,58.79999999]
[1763218856693,0.69,141.65,141.63,58.79999999]
[1763218856887,3.61005346,141.65,141.63,58.79999999]
[1763218857194,2.92005346,141.64,141.61,66.5116406]
[1763218857380,3.61005346,141.64,141.61,66.5116406]
[1763218857975,0.69,141.64,141.61,66.5116406]
[1763218858888,2.92005346,141.65,141.61,65.8616406]
[1763218859091,3.61005346,141.65,141.62,0.65]
[1763218860609,0.69,141.65,141.62,7.71081114]
[1763218860774,26.26125346,141.67,141.62,10.6308646]
[1763218860982,0.69,141.66,141.63,3.57005346]
[1763218861195,26.26125346,141.67,141.63,3.57005346]
[1763218861393,26.26125346,141.67,141.64,0.65]
[1763218861597,0.69,141.66,141.62,28.28373848]
[1763218861811,3.61005346,141.66,141.62,66.51081113]
[1763218862299,0.69,141.65,141.62,66.51081113]
[1763218862805,0.69,141.65,141.62,59.44999999]
[1763218862999,2.92005346,141.63,141.58,58.79999999]
[1763218863197,3.61005346,141.62,141.57,2.92005346]
[1763218863501,3.61005346,141.61,141.58,0.65]
[1763218863687,3.61005346,141.61,141.56,64.32005346]
[1763218863688,2.92005346,141.6,141.56,64.32005346]
[1763218864001,3.61005346,141.6,141.57,0.65]
[1763218864195,3.61005346,141.59,141.56,62.05]
[1763218864774,3.61005346,141.59,141.56,69.11381548]
[1763218864970,3.61005346,141.59,141.56,7.71381548]
[1763218865176,0.69,141.59,141.56,7.71381548]
[1763218866585,3.61005346,141.59,141.56,7.71381548]
[1763218866784,2.92005346,141.58,141.54,7.06491662]
[1763218866995,3.61005346,141.58,141.54,7.71491662]
[1763218867198,3.61005346,141.57,141.52,7.16567068]
[1763218867497,3.61005346,141.57,141.53,0.65]
[1763218867679,3.61005346,141.56,141.52,10.73572414]
[1763218867881,3.61005346,141.56,141.52,7.81567068]
[1763218868086,0.69,141.59,141.55,2.92005346]
[1763218868393,0.69,141.59,141.56,0.65]
[1763218868780,26.26125346,141.61,141.56,3.57005346]
[1763218869102,26.26125346,141.61,141.57,7.06364342]
[1763218869407,26.26125346,141.61,141.57,7.71364342]
[1763218870386,26.26125346,141.61,141.58,7.71283657]
[1763218871016,0.69,141.6,141.58,7.06283657]
[1763218871195,0.69,141.6,141.57,7.06343079]
[1763218872315,0.69,141.6,141.57,68.46343079]
[1763218874000,0.69,141.6,141.57,89.04259281]
[1763218875711,0.69,141.6,141.57,86.12253935]
[1763218877204,0.69,141.6,141.57,86.79253935]
[1763218877407,0.68,141.6,141.57,89.71259281]
[1763218877712,9.78882769,141.64,141.59,2.92005346]
[1763218877713,0.68,141.64,141.59,2.92005346]
[1763218877889,3.60005346,141.64,141.59,64.32005346]
[1763218878090,3.60005346,141.64,141.6,0.67]
[1763218878291,0.68,141.63,141.6,0.67]
[1763218878587,3.60005346,141.64,141.6,3.59005346]
[1763218878898,0.68,141.63,141.6,0.67]
[1763218879087,0.68,141.63,141.59,64.32005346]
[1763218879287,0.68,141.63,141.59,64.99005346]
[1763218879619,3.60005346,141.63,141.59,72.05227666]
[1763218880019,0.68,141.62,141.59,72.05227666]
[1763218880996,0.68,141.62,141.59,89.70889082]
[1763218881608,22.6512,141.63,141.6,3.59005346]
[1763218882310,22.6512,141.63,141.6,64.99005346]
[1763218883089,26.25125346,141.64,141.6,64.99005346]
[1763218883617,0.68,141.67,141.62,2.92005346]
[1763218883801,2.92005346,141.66,141.62,64.32005346]
[1763218883998,3.60005346,141.66,141.62,64.99005346]
[1763218884412,2.92005346,141.68,141.63,3.59005346]
[1763218884602,0.68,141.68,141.64,2.92005346]
[1763218884925,0.68,141.67,141.64,0.67]
[1763218885626,3.60005346,141.67,141.64,7.72994611]
[1763218886126,0.68,141.68,141.64,72.04999957]
[1763218886323,25.77125346,141.69,141.65,0.67]
[1763218886529,26.45125346,141.69,141.65,0.67]
[1763218888003,25.77125346,141.69,141.65,0.67]
[1763218888329,3.60005346,141.68,141.64,68.45994611]
[1763218888524,3.60005346,141.68,141.64,69.12994611]
[1763218889530,0.68,141.68,141.64,72.04999957]
[1763218889717,0.68,141.68,141.65,0.67]
[1763218890232,26.45125346,141.69,141.66,7.05915572]
[1763218890434,3.60005346,141.68,141.65,7.05956619]
[1763218890931,0.68,141.67,141.65,7.05956619]
[1763218891232,0.68,141.67,141.65,68.45956619]
[1763218891527,2.92005346,141.68,141.65,68.45956619]
[1763218891715,3.60005346,141.68,141.65,68.45956619]
[1763218893232,3.60005346,141.68,141.65,69.12956619]
[1763218893407,3.60005346,141.68,141.65,68.45956619]
[1763218894435,2.92005346,141.68,141.65,68.45956619]
[1763218894631,0.68,141.67,141.65,68.45956619]
[1763218895731,0.68,141.67,141.65,61.4]
[1763218897125,3.60005346,141.67,141.65,61.4]
[1763218897540,3.60005346,141.66,141.65,61.4]
[1763218897720,3.60005346,141.66,141.63,7.73064784]
[1763218897922,22.6512,141.68,141.64,2.92005346]
[1763218898227,0.2,141.69,141.66,2.92005346]
[1763218898542,0.2,141.69,141.66,64.32005346]
[1763218898914,0.2,141.69,141.67,0.67]
[1763218902323,0.2,141.69,141.67,7.72862529]
[1763218902537,0.2,141.69,141.67,7.05862529]
[1763218902741,0.2,141.69,141.67,69.12862529]
[1763218903452,0.2,141.69,141.68,0.72]
[1763218903946,0.2,141.69,141.67,68.45862529]
[1763218904147,0.2,141.69,141.67,69.17862529]
[1763218904348,0.2,141.69,141.67,62.12]
[1763218905139,0.2,141.69,141.67,61.4]
[1763218905347,0.92,141.69,141.67,61.4]
[1763218905846,0.2,141.69,141.67,62.12]
[1763218906050,0.92,141.69,141.67,61.4]
[1763218906651,0.72,141.68,141.67,61.4]
[1763218907125,2.06918341,141.69,141.67,61.4]
[1763218907326,2.78918341,141.69,141.67,61.4]
[1763218908726,0.92,141.69,141.67,61.4]
[1763218909064,0.92,141.69,141.67,68.45854086]
[1763218909958,0.2,141.69,141.67,68.45854086]
[1763218910127,0.2,141.69,141.67,69.17854086]
[1763218911331,0.92,141.69,141.67,69.17854086]
[1763218911538,0.92,141.69,141.67,68.45854086]
[1763218912225,0.2,141.69,141.68,0.72]
[1763218912450,0.2,141.69,141.68,7.77815923]
[1763218912642,0.2,141.69,141.68,71.04734264]
[1763218912841,0.2,141.69,141.68,80.83617033]
[1763218913065,0.2,141.7,141.69,9.78882769]
[1763218913251,0.2,141.7,141.69,73.7780111]
[1763218914540,0.2,141.7,141.69,80.83567219]
[1763218918677,0.2,141.72,141.71,68.05666502]
[1763218918961,0.2,141.72,141.71,79.71467612]
[1763218919173,0.2,141.72,141.71,80.43467612]
[1763218920949,0.2,141.72,141.71,70.64584843]
[1763218921338,0.2,141.72,141.71,68.05666502]
[1763218921644,0.92,141.72,141.71,61.0]
[1763218922048,0.92,141.72,141.7,61.0]
[1763218922242,0.72,141.71,141.68,7.05800143]
[1763218922444,2.58918341,141.71,141.67,68.05843934]
[1763218922646,0.72,141.71,141.67,69.92762275]
[1763218922862,0.92,141.72,141.68,9.64694841]
[1763218923044,0.2,141.72,141.68,9.64694841]
[1763218923244,0.72,141.71,141.68,9.64694841]
[1763218923450,0.92,141.72,141.68,9.64694841]
[1763218923863,0.2,141.72,141.68,8.92694841]
[1763218924166,0.72,141.71,141.68,8.92694841]
[1763218925338,0.72,141.71,141.67,68.77846617]
[1763218925550,0.72,141.71,141.67,70.64764958]
[1763218926647,0.72,141.71,141.65,62.86918341]
[1763218926648,1.86918341,141.7,141.65,62.86918341]
[1763218926960,1.86918341,141.69,141.65,61.0]
[1763218927472,0.72,141.68,141.65,68.0595933]
[1763218929378,0.72,141.68,141.65,69.92877671]
[1763218929871,0.72,141.68,141.65,68.0595933]
[1763218930763,2.58918341,141.68,141.65,68.0595933]
[1763218930996,2.58918341,141.68,141.65,61.0]
[1763218931273,0.69,141.67,141.65,61.0]
[1763218933164,2.55918341,141.67,141.65,61.0]
[1763218933346,0.69,141.67,141.65,61.0]
[1763218933544,0.66,141.66,141.65,61.0]